{"text_format":"3","workbook":"xlsx","n_sheets":4,"sheets":["PODUJATIA","KALENDÁR","VERZIA PRE TLAČ","SPRÁVCA"],"not_rendered":{"defined_names":18},"read":"whole","date_system":"1900"}

{"sheet":"PODUJATIA","index":0,"n_rows":38,"n_cols":5,"rows_kept":38}
[]
[null,"MESAČNÝ PLÁNOVAČ"]
[null,"SPOLOČENSKÝCH PODUJATÍ"]
[]
[]
[]
[]
[null,"DÁTUM","DEŇ","MESIAC","NÁZOV PODUJATIA"]
[null,"2016-07-01",{"$f":"IF(ISBLANK(tblPodujatia[[#This Row],[DÁTUM]]),\"\",UPPER(TEXT(tblPodujatia[[#This Row],[DÁTUM]],\"ddd\")))","v":"PI"},{"$f":"IF(ISBLANK(tblPodujatia[[#This Row],[DÁTUM]]),\"\",UPPER(TEXT(tblPodujatia[[#This Row],[DÁTUM]],\"mmm\")))","v":"7"},"Komunitná záhrada"]
[null,"2016-07-01",{"$f":"IF(ISBLANK(tblPodujatia[[#This Row],[DÁTUM]]),\"\",UPPER(TEXT(tblPodujatia[[#This Row],[DÁTUM]],\"ddd\")))","v":"PI"},{"$f":"IF(ISBLANK(tblPodujatia[[#This Row],[DÁTUM]]),\"\",UPPER(TEXT(tblPodujatia[[#This Row],[DÁTUM]],\"mmm\")))","v":"7"},"Mestská rada"]
[null,"2016-07-02",{"$f":"IF(ISBLANK(tblPodujatia[[#This Row],[DÁTUM]]),\"\",UPPER(TEXT(tblPodujatia[[#This Row],[DÁTUM]],\"ddd\")))","v":"SO"},{"$f":"IF(ISBLANK(tblPodujatia[[#This Row],[DÁTUM]]),\"\",UPPER(TEXT(tblPodujatia[[#This Row],[DÁTUM]],\"mmm\")))","v":"7"},"Komunitná záhrada"]
[null,"2016-07-03",{"$f":"IF(ISBLANK(tblPodujatia[[#This Row],[DÁTUM]]),\"\",UPPER(TEXT(tblPodujatia[[#This Row],[DÁTUM]],\"ddd\")))","v":"NE"},{"$f":"IF(ISBLANK(tblPodujatia[[#This Row],[DÁTUM]]),\"\",UPPER(TEXT(tblPodujatia[[#This Row],[DÁTUM]],\"mmm\")))","v":"7"},"Filmová noc v parku"]
[null,"2016-07-08",{"$f":"IF(ISBLANK(tblPodujatia[[#This Row],[DÁTUM]]),\"\",UPPER(TEXT(tblPodujatia[[#This Row],[DÁTUM]],\"ddd\")))","v":"PI"},{"$f":"IF(ISBLANK(tblPodujatia[[#This Row],[DÁTUM]]),\"\",UPPER(TEXT(tblPodujatia[[#This Row],[DÁTUM]],\"mmm\")))","v":"7"},"Mestská rada"]
[null,"2016-07-11",{"$f":"IF(ISBLANK(tblPodujatia[[#This Row],[DÁTUM]]),\"\",UPPER(TEXT(tblPodujatia[[#This Row],[DÁTUM]],\"ddd\")))","v":"PO"},{"$f":"IF(ISBLANK(tblPodujatia[[#This Row],[DÁTUM]]),\"\",UPPER(TEXT(tblPodujatia[[#This Row],[DÁTUM]],\"mmm\")))","v":"7"},"Obed obchodnej komory"]
[null,"2016-07-12",{"$f":"IF(ISBLANK(tblPodujatia[[#This Row],[DÁTUM]]),\"\",UPPER(TEXT(tblPodujatia[[#This Row],[DÁTUM]],\"ddd\")))","v":"UT"},{"$f":"IF(ISBLANK(tblPodujatia[[#This Row],[DÁTUM]]),\"\",UPPER(TEXT(tblPodujatia[[#This Row],[DÁTUM]],\"mmm\")))","v":"7"},"Výstava starožitností"]
[null,"2016-07-14",{"$f":"IF(ISBLANK(tblPodujatia[[#This Row],[DÁTUM]]),\"\",UPPER(TEXT(tblPodujatia[[#This Row],[DÁTUM]],\"ddd\")))","v":"ŠT"},{"$f":"IF(ISBLANK(tblPodujatia[[#This Row],[DÁTUM]]),\"\",UPPER(TEXT(tblPodujatia[[#This Row],[DÁTUM]],\"mmm\")))","v":"7"},"Komunitný seminár"]
[null,"2016-07-15",{"$f":"IF(ISBLANK(tblPodujatia[[#This Row],[DÁTUM]]),\"\",UPPER(TEXT(tblPodujatia[[#This Row],[DÁTUM]],\"ddd\")))","v":"PI"},{"$f":"IF(ISBLANK(tblPodujatia[[#This Row],[DÁTUM]]),\"\",UPPER(TEXT(tblPodujatia[[#This Row],[DÁTUM]],\"mmm\")))","v":"7"},"Mestská rada"]
[null,"2016-07-19",{"$f":"IF(ISBLANK(tblPodujatia[[#This Row],[DÁTUM]]),\"\",UPPER(TEXT(tblPodujatia[[#This Row],[DÁTUM]],\"ddd\")))","v":"UT"},{"$f":"IF(ISBLANK(tblPodujatia[[#This Row],[DÁTUM]]),\"\",UPPER(TEXT(tblPodujatia[[#This Row],[DÁTUM]],\"mmm\")))","v":"7"},"Seminár o strategickom plánovaní"]
[null,"2016-07-20",{"$f":"IF(ISBLANK(tblPodujatia[[#This Row],[DÁTUM]]),\"\",UPPER(TEXT(tblPodujatia[[#This Row],[DÁTUM]],\"ddd\")))","v":"ST"},{"$f":"IF(ISBLANK(tblPodujatia[[#This Row],[DÁTUM]]),\"\",UPPER(TEXT(tblPodujatia[[#This Row],[DÁTUM]],\"mmm\")))","v":"7"},"Čistenie parku"]
[null,"2016-07-22",{"$f":"IF(ISBLANK(tblPodujatia[[#This Row],[DÁTUM]]),\"\",UPPER(TEXT(tblPodujatia[[#This Row],[DÁTUM]],\"ddd\")))","v":"PI"},{"$f":"IF(ISBLANK(tblPodujatia[[#This Row],[DÁTUM]]),\"\",UPPER(TEXT(tblPodujatia[[#This Row],[DÁTUM]],\"mmm\")))","v":"7"},"Mestská rada"]
[null,"2016-07-26",{"$f":"IF(ISBLANK(tblPodujatia[[#This Row],[DÁTUM]]),\"\",UPPER(TEXT(tblPodujatia[[#This Row],[DÁTUM]],\"ddd\")))","v":"UT"},{"$f":"IF(ISBLANK(tblPodujatia[[#This Row],[DÁTUM]]),\"\",UPPER(TEXT(tblPodujatia[[#This Row],[DÁTUM]],\"mmm\")))","v":"7"},"Vychádzka do centra mesta"]
[null,"2016-07-26",{"$f":"IF(ISBLANK(tblPodujatia[[#This Row],[DÁTUM]]),\"\",UPPER(TEXT(tblPodujatia[[#This Row],[DÁTUM]],\"ddd\")))","v":"UT"},{"$f":"IF(ISBLANK(tblPodujatia[[#This Row],[DÁTUM]]),\"\",UPPER(TEXT(tblPodujatia[[#This Row],[DÁTUM]],\"mmm\")))","v":"7"},"Výlet po baroch"]
[null,"2016-07-29",{"$f":"IF(ISBLANK(tblPodujatia[[#This Row],[DÁTUM]]),\"\",UPPER(TEXT(tblPodujatia[[#This Row],[DÁTUM]],\"ddd\")))","v":"PI"},{"$f":"IF(ISBLANK(tblPodujatia[[#This Row],[DÁTUM]]),\"\",UPPER(TEXT(tblPodujatia[[#This Row],[DÁTUM]],\"mmm\")))","v":"7"},"Mestská rada"]
[null,"2016-08-05",{"$f":"IF(ISBLANK(tblPodujatia[[#This Row],[DÁTUM]]),\"\",UPPER(TEXT(tblPodujatia[[#This Row],[DÁTUM]],\"ddd\")))","v":"PI"},{"$f":"IF(ISBLANK(tblPodujatia[[#This Row],[DÁTUM]]),\"\",UPPER(TEXT(tblPodujatia[[#This Row],[DÁTUM]],\"mmm\")))","v":"8"},"Mestská rada"]
[null,"2016-08-10",{"$f":"IF(ISBLANK(tblPodujatia[[#This Row],[DÁTUM]]),\"\",UPPER(TEXT(tblPodujatia[[#This Row],[DÁTUM]],\"ddd\")))","v":"ST"},{"$f":"IF(ISBLANK(tblPodujatia[[#This Row],[DÁTUM]]),\"\",UPPER(TEXT(tblPodujatia[[#This Row],[DÁTUM]],\"mmm\")))","v":"8"},"Čistenie parku"]
[null,"2016-08-12",{"$f":"IF(ISBLANK(tblPodujatia[[#This Row],[DÁTUM]]),\"\",UPPER(TEXT(tblPodujatia[[#This Row],[DÁTUM]],\"ddd\")))","v":"PI"},{"$f":"IF(ISBLANK(tblPodujatia[[#This Row],[DÁTUM]]),\"\",UPPER(TEXT(tblPodujatia[[#This Row],[DÁTUM]],\"mmm\")))","v":"8"},"Mestská rada"]
[null,"2016-08-13",{"$f":"IF(ISBLANK(tblPodujatia[[#This Row],[DÁTUM]]),\"\",UPPER(TEXT(tblPodujatia[[#This Row],[DÁTUM]],\"ddd\")))","v":"SO"},{"$f":"IF(ISBLANK(tblPodujatia[[#This Row],[DÁTUM]]),\"\",UPPER(TEXT(tblPodujatia[[#This Row],[DÁTUM]],\"mmm\")))","v":"8"},"Komunitná záhrada"]
[null,"2016-09-01",{"$f":"IF(ISBLANK(tblPodujatia[[#This Row],[DÁTUM]]),\"\",UPPER(TEXT(tblPodujatia[[#This Row],[DÁTUM]],\"ddd\")))","v":"ŠT"},{"$f":"IF(ISBLANK(tblPodujatia[[#This Row],[DÁTUM]]),\"\",UPPER(TEXT(tblPodujatia[[#This Row],[DÁTUM]],\"mmm\")))","v":"9"},"Rozpočtový výbor"]
[null,"2016-10-01",{"$f":"IF(ISBLANK(tblPodujatia[[#This Row],[DÁTUM]]),\"\",UPPER(TEXT(tblPodujatia[[#This Row],[DÁTUM]],\"ddd\")))","v":"SO"},{"$f":"IF(ISBLANK(tblPodujatia[[#This Row],[DÁTUM]]),\"\",UPPER(TEXT(tblPodujatia[[#This Row],[DÁTUM]],\"mmm\")))","v":"10"},"Rozpočtový výbor"]
[null,"2016-11-03",{"$f":"IF(ISBLANK(tblPodujatia[[#This Row],[DÁTUM]]),\"\",UPPER(TEXT(tblPodujatia[[#This Row],[DÁTUM]],\"ddd\")))","v":"ŠT"},{"$f":"IF(ISBLANK(tblPodujatia[[#This Row],[DÁTUM]]),\"\",UPPER(TEXT(tblPodujatia[[#This Row],[DÁTUM]],\"mmm\")))","v":"11"},"Rozpočtový výbor"]
[null,"2016-12-01",{"$f":"IF(ISBLANK(tblPodujatia[[#This Row],[DÁTUM]]),\"\",UPPER(TEXT(tblPodujatia[[#This Row],[DÁTUM]],\"ddd\")))","v":"ŠT"},{"$f":"IF(ISBLANK(tblPodujatia[[#This Row],[DÁTUM]]),\"\",UPPER(TEXT(tblPodujatia[[#This Row],[DÁTUM]],\"mmm\")))","v":"12"},"Rozpočtový výbor"]
[null,"2017-01-01",{"$f":"IF(ISBLANK(tblPodujatia[[#This Row],[DÁTUM]]),\"\",UPPER(TEXT(tblPodujatia[[#This Row],[DÁTUM]],\"ddd\")))","v":"NE"},{"$f":"IF(ISBLANK(tblPodujatia[[#This Row],[DÁTUM]]),\"\",UPPER(TEXT(tblPodujatia[[#This Row],[DÁTUM]],\"mmm\")))","v":"1"},"Rozpočtový výbor"]
[null,"2017-02-02",{"$f":"IF(ISBLANK(tblPodujatia[[#This Row],[DÁTUM]]),\"\",UPPER(TEXT(tblPodujatia[[#This Row],[DÁTUM]],\"ddd\")))","v":"ŠT"},{"$f":"IF(ISBLANK(tblPodujatia[[#This Row],[DÁTUM]]),\"\",UPPER(TEXT(tblPodujatia[[#This Row],[DÁTUM]],\"mmm\")))","v":"2"},"Rozpočtový výbor"]
[null,"2017-03-02",{"$f":"IF(ISBLANK(tblPodujatia[[#This Row],[DÁTUM]]),\"\",UPPER(TEXT(tblPodujatia[[#This Row],[DÁTUM]],\"ddd\")))","v":"ŠT"},{"$f":"IF(ISBLANK(tblPodujatia[[#This Row],[DÁTUM]]),\"\",UPPER(TEXT(tblPodujatia[[#This Row],[DÁTUM]],\"mmm\")))","v":"3"},"Rozpočtový výbor"]
[null,"2017-04-01",{"$f":"IF(ISBLANK(tblPodujatia[[#This Row],[DÁTUM]]),\"\",UPPER(TEXT(tblPodujatia[[#This Row],[DÁTUM]],\"ddd\")))","v":"SO"},{"$f":"IF(ISBLANK(tblPodujatia[[#This Row],[DÁTUM]]),\"\",UPPER(TEXT(tblPodujatia[[#This Row],[DÁTUM]],\"mmm\")))","v":"4"},"Rozpočtový výbor"]
[null,"2017-05-01",{"$f":"IF(ISBLANK(tblPodujatia[[#This Row],[DÁTUM]]),\"\",UPPER(TEXT(tblPodujatia[[#This Row],[DÁTUM]],\"ddd\")))","v":"PO"},{"$f":"IF(ISBLANK(tblPodujatia[[#This Row],[DÁTUM]]),\"\",UPPER(TEXT(tblPodujatia[[#This Row],[DÁTUM]],\"mmm\")))","v":"5"},"Rozpočtový výbor"]
[null,"2017-06-01",{"$f":"IF(ISBLANK(tblPodujatia[[#This Row],[DÁTUM]]),\"\",UPPER(TEXT(tblPodujatia[[#This Row],[DÁTUM]],\"ddd\")))","v":"ŠT"},{"$f":"IF(ISBLANK(tblPodujatia[[#This Row],[DÁTUM]]),\"\",UPPER(TEXT(tblPodujatia[[#This Row],[DÁTUM]],\"mmm\")))","v":"6"},"Rozpočtový výbor"]
[null,"2017-06-02",{"$f":"IF(ISBLANK(tblPodujatia[[#This Row],[DÁTUM]]),\"\",UPPER(TEXT(tblPodujatia[[#This Row],[DÁTUM]],\"ddd\")))","v":"PI"},{"$f":"IF(ISBLANK(tblPodujatia[[#This Row],[DÁTUM]]),\"\",UPPER(TEXT(tblPodujatia[[#This Row],[DÁTUM]],\"mmm\")))","v":"6"},"Mestská rada"]

{"sheet":"KALENDÁR","index":1,"n_rows":35,"n_cols":21,"rows_kept":35,"merged":[[1,5,1,11],[30,8,34,20]]}
[]
[null,null,2016,null,null,{"$f":"LOOKUP(ČísMesiaca,tblMesiace[ČÍSLO],tblMesiace[MESIAC])","v":"JÚL"}]
[null,null,7,null,null,{"$f":"DATE(ZobraziťRok,ČísMesiaca,1)","v":"2016-07-01"},null,null,{"$f":"WEEKDAY(DátumZačatia)","v":6}]
[null,null,"PO",null,null,"UT",null,null,"ST",null,null,"ŠT",null,null,"PI",null,null,"SO",null,null,"NE"]
[]
[null,null,{"$f":"DátumZačatia-(WEEKDAY(DátumZačatia)-2)+{0;1;2;3;4;5}*7 +{1,2,3,4,5,6,7}-3+COLUMN(B1)","v":"2016-06-27"},null,null,{"$f":"DátumZačatia-(WEEKDAY(DátumZačatia)-2)+{0;1;2;3;4;5}*7 +{1,2,3,4,5,6,7}-3+COLUMN(C1)","v":"2016-06-28"},null,null,{"$f":"DátumZačatia-(WEEKDAY(DátumZačatia)-2)+{0;1;2;3;4;5}*7 +{1,2,3,4,5,6,7}-3+COLUMN(D1)","v":"2016-06-29"},null,null,{"$f":"DátumZačatia-(WEEKDAY(DátumZačatia)-2)+{0;1;2;3;4;5}*7 +{1,2,3,4,5,6,7}-3+COLUMN(E1)","v":"2016-06-30"},null,null,{"$f":"DátumZačatia-(WEEKDAY(DátumZačatia)-2)+{0;1;2;3;4;5}*7 +{1,2,3,4,5,6,7}-3+COLUMN(F1)","v":"2016-07-01"},null,null,{"$f":"DátumZačatia-(WEEKDAY(DátumZačatia)-2)+{0;1;2;3;4;5}*7 +{1,2,3,4,5,6,7}-3+COLUMN(G1)","v":"2016-07-02"},null,null,{"$f":"DátumZačatia-(WEEKDAY(DátumZačatia)-2)+{0;1;2;3;4;5}*7 +{1,2,3,4,5,6,7}-3+COLUMN(H1)","v":"2016-07-03"}]
[null,null,{"$f":"IFERROR(INDEX(tblPodujatia[],SMALL(IF(Dátumy=C$6,ROW(Dátumy)),ROW(1:1))-ZačiatokRiadkaTabuľky,4),\"\")","v":""},null,null,{"$f":"IFERROR(INDEX(tblPodujatia[],SMALL(IF(Dátumy=F$6,ROW(Dátumy)),ROW(1:1))-ZačiatokRiadkaTabuľky,4),\"\")","v":""},null,null,{"$f":"IFERROR(INDEX(tblPodujatia[],SMALL(IF(Dátumy=I$6,ROW(Dátumy)),ROW(1:1))-ZačiatokRiadkaTabuľky,4),\"\")","v":""},null,null,{"$f":"IFERROR(INDEX(tblPodujatia[],SMALL(IF(Dátumy=L$6,ROW(Dátumy)),ROW(1:1))-ZačiatokRiadkaTabuľky,4),\"\")","v":""},null,null,{"$f":"IFERROR(INDEX(tblPodujatia[],SMALL(IF(Dátumy=O$6,ROW(Dátumy)),ROW(1:1))-ZačiatokRiadkaTabuľky,4),\"\")","v":"Komunitná záhrada"},null,null,{"$f":"IFERROR(INDEX(tblPodujatia[],SMALL(IF(Dátumy=R$6,ROW(Dátumy)),ROW(1:1))-ZačiatokRiadkaTabuľky,4),\"\")","v":"Komunitná záhrada"},null,null,{"$f":"IFERROR(INDEX(tblPodujatia[],SMALL(IF(Dátumy=U$6,ROW(Dátumy)),ROW(1:1))-ZačiatokRiadkaTabuľky,4),\"\")","v":"Filmová noc v parku"}]
[null,null,{"$f":"IFERROR(INDEX(tblPodujatia[],SMALL(IF(Dátumy=C$6,ROW(Dátumy)),ROW(2:2))-ZačiatokRiadkaTabuľky,4),\"\")","v":""},null,null,{"$f":"IFERROR(INDEX(tblPodujatia[],SMALL(IF(Dátumy=F$6,ROW(Dátumy)),ROW(2:2))-ZačiatokRiadkaTabuľky,4),\"\")","v":""},null,null,{"$f":"IFERROR(INDEX(tblPodujatia[],SMALL(IF(Dátumy=I$6,ROW(Dátumy)),ROW(2:2))-ZačiatokRiadkaTabuľky,4),\"\")","v":""},null,null,{"$f":"IFERROR(INDEX(tblPodujatia[],SMALL(IF(Dátumy=L$6,ROW(Dátumy)),ROW(2:2))-ZačiatokRiadkaTabuľky,4),\"\")","v":""},null,null,{"$f":"IFERROR(INDEX(tblPodujatia[],SMALL(IF(Dátumy=O$6,ROW(Dátumy)),ROW(2:2))-ZačiatokRiadkaTabuľky,4),\"\")","v":"Mestská rada"},null,null,{"$f":"IFERROR(INDEX(tblPodujatia[],SMALL(IF(Dátumy=R$6,ROW(Dátumy)),ROW(2:2))-ZačiatokRiadkaTabuľky,4),\"\")","v":""},null,null,{"$f":"IFERROR(INDEX(tblPodujatia[],SMALL(IF(Dátumy=U$6,ROW(Dátumy)),ROW(2:2))-ZačiatokRiadkaTabuľky,4),\"\")","v":""}]
[null,null,{"$f":"IFERROR(INDEX(tblPodujatia[],SMALL(IF(Dátumy=C$6,ROW(Dátumy)),ROW(3:3))-ZačiatokRiadkaTabuľky,4),\"\")","v":""},null,null,{"$f":"IFERROR(INDEX(tblPodujatia[],SMALL(IF(Dátumy=F$6,ROW(Dátumy)),ROW(3:3))-ZačiatokRiadkaTabuľky,4),\"\")","v":""},null,null,{"$f":"IFERROR(INDEX(tblPodujatia[],SMALL(IF(Dátumy=I$6,ROW(Dátumy)),ROW(3:3))-ZačiatokRiadkaTabuľky,4),\"\")","v":""},null,null,{"$f":"IFERROR(INDEX(tblPodujatia[],SMALL(IF(Dátumy=L$6,ROW(Dátumy)),ROW(3:3))-ZačiatokRiadkaTabuľky,4),\"\")","v":""},null,null,{"$f":"IFERROR(INDEX(tblPodujatia[],SMALL(IF(Dátumy=O$6,ROW(Dátumy)),ROW(3:3))-ZačiatokRiadkaTabuľky,4),\"\")","v":""},null,null,{"$f":"IFERROR(INDEX(tblPodujatia[],SMALL(IF(Dátumy=R$6,ROW(Dátumy)),ROW(3:3))-ZačiatokRiadkaTabuľky,4),\"\")","v":""},null,null,{"$f":"IFERROR(INDEX(tblPodujatia[],SMALL(IF(Dátumy=U$6,ROW(Dátumy)),ROW(3:3))-ZačiatokRiadkaTabuľky,4),\"\")","v":""}]
[null,null,{"$f":"IFERROR(INDEX(tblPodujatia[],SMALL(IF(Dátumy=C$6,ROW(Dátumy)),ROW(4:4))-ZačiatokRiadkaTabuľky,4),\"\")","v":""},null,null,{"$f":"IFERROR(INDEX(tblPodujatia[],SMALL(IF(Dátumy=F$6,ROW(Dátumy)),ROW(4:4))-ZačiatokRiadkaTabuľky,4),\"\")","v":""},null,null,{"$f":"IFERROR(INDEX(tblPodujatia[],SMALL(IF(Dátumy=I$6,ROW(Dátumy)),ROW(4:4))-ZačiatokRiadkaTabuľky,4),\"\")","v":""},null,null,{"$f":"IFERROR(INDEX(tblPodujatia[],SMALL(IF(Dátumy=L$6,ROW(Dátumy)),ROW(4:4))-ZačiatokRiadkaTabuľky,4),\"\")","v":""},null,null,{"$f":"IFERROR(INDEX(tblPodujatia[],SMALL(IF(Dátumy=O$6,ROW(Dátumy)),ROW(4:4))-ZačiatokRiadkaTabuľky,4),\"\")","v":""},null,null,{"$f":"IFERROR(INDEX(tblPodujatia[],SMALL(IF(Dátumy=R$6,ROW(Dátumy)),ROW(4:4))-ZačiatokRiadkaTabuľky,4),\"\")","v":""},null,null,{"$f":"IFERROR(INDEX(tblPodujatia[],SMALL(IF(Dátumy=U$6,ROW(Dátumy)),ROW(4:4))-ZačiatokRiadkaTabuľky,4),\"\")","v":""}]
[null,null,{"$f":"U6+1","v":"2016-07-04"},null,null,{"$f":"C11+1","v":"2016-07-05"},null,null,{"$f":"F11+1","v":"2016-07-06"},null,null,{"$f":"I11+1","v":"2016-07-07"},null,null,{"$f":"L11+1","v":"2016-07-08"},null,null,{"$f":"O11+1","v":"2016-07-09"},null,null,{"$f":"R11+1","v":"2016-07-10"}]
[null,null,{"$f":"IFERROR(INDEX(tblPodujatia[],SMALL(IF(Dátumy=C$11,ROW(Dátumy)),ROW(1:1))-ZačiatokRiadkaTabuľky,4),\"\")","v":""},null,null,{"$f":"IFERROR(INDEX(tblPodujatia[],SMALL(IF(Dátumy=F$11,ROW(Dátumy)),ROW(1:1))-ZačiatokRiadkaTabuľky,4),\"\")","v":""},null,null,{"$f":"IFERROR(INDEX(tblPodujatia[],SMALL(IF(Dátumy=I$11,ROW(Dátumy)),ROW(1:1))-ZačiatokRiadkaTabuľky,4),\"\")","v":""},null,null,{"$f":"IFERROR(INDEX(tblPodujatia[],SMALL(IF(Dátumy=L$11,ROW(Dátumy)),ROW(1:1))-ZačiatokRiadkaTabuľky,4),\"\")","v":""},null,null,{"$f":"IFERROR(INDEX(tblPodujatia[],SMALL(IF(Dátumy=O$11,ROW(Dátumy)),ROW(1:1))-ZačiatokRiadkaTabuľky,4),\"\")","v":"Mestská rada"},null,null,{"$f":"IFERROR(INDEX(tblPodujatia[],SMALL(IF(Dátumy=R$11,ROW(Dátumy)),ROW(1:1))-ZačiatokRiadkaTabuľky,4),\"\")","v":""},null,null,{"$f":"IFERROR(INDEX(tblPodujatia[],SMALL(IF(Dátumy=U$11,ROW(Dátumy)),ROW(1:1))-ZačiatokRiadkaTabuľky,4),\"\")","v":""}]
[null,null,{"$f":"IFERROR(INDEX(tblPodujatia[],SMALL(IF(Dátumy=C$11,ROW(Dátumy)),ROW(2:2))-ZačiatokRiadkaTabuľky,4),\"\")","v":""},null,null,{"$f":"IFERROR(INDEX(tblPodujatia[],SMALL(IF(Dátumy=F$11,ROW(Dátumy)),ROW(2:2))-ZačiatokRiadkaTabuľky,4),\"\")","v":""},null,null,{"$f":"IFERROR(INDEX(tblPodujatia[],SMALL(IF(Dátumy=I$11,ROW(Dátumy)),ROW(2:2))-ZačiatokRiadkaTabuľky,4),\"\")","v":""},null,null,{"$f":"IFERROR(INDEX(tblPodujatia[],SMALL(IF(Dátumy=L$11,ROW(Dátumy)),ROW(2:2))-ZačiatokRiadkaTabuľky,4),\"\")","v":""},null,null,{"$f":"IFERROR(INDEX(tblPodujatia[],SMALL(IF(Dátumy=O$11,ROW(Dátumy)),ROW(2:2))-ZačiatokRiadkaTabuľky,4),\"\")","v":""},null,null,{"$f":"IFERROR(INDEX(tblPodujatia[],SMALL(IF(Dátumy=R$11,ROW(Dátumy)),ROW(2:2))-ZačiatokRiadkaTabuľky,4),\"\")","v":""},null,null,{"$f":"IFERROR(INDEX(tblPodujatia[],SMALL(IF(Dátumy=U$11,ROW(Dátumy)),ROW(2:2))-ZačiatokRiadkaTabuľky,4),\"\")","v":""}]
[null,null,{"$f":"IFERROR(INDEX(tblPodujatia[],SMALL(IF(Dátumy=C$11,ROW(Dátumy)),ROW(3:3))-ZačiatokRiadkaTabuľky,4),\"\")","v":""},null,null,{"$f":"IFERROR(INDEX(tblPodujatia[],SMALL(IF(Dátumy=F$11,ROW(Dátumy)),ROW(3:3))-ZačiatokRiadkaTabuľky,4),\"\")","v":""},null,null,{"$f":"IFERROR(INDEX(tblPodujatia[],SMALL(IF(Dátumy=I$11,ROW(Dátumy)),ROW(3:3))-ZačiatokRiadkaTabuľky,4),\"\")","v":""},null,null,{"$f":"IFERROR(INDEX(tblPodujatia[],SMALL(IF(Dátumy=L$11,ROW(Dátumy)),ROW(3:3))-ZačiatokRiadkaTabuľky,4),\"\")","v":""},null,null,{"$f":"IFERROR(INDEX(tblPodujatia[],SMALL(IF(Dátumy=O$11,ROW(Dátumy)),ROW(3:3))-ZačiatokRiadkaTabuľky,4),\"\")","v":""},null,null,{"$f":"IFERROR(INDEX(tblPodujatia[],SMALL(IF(Dátumy=R$11,ROW(Dátumy)),ROW(3:3))-ZačiatokRiadkaTabuľky,4),\"\")","v":""},null,null,{"$f":"IFERROR(INDEX(tblPodujatia[],SMALL(IF(Dátumy=U$11,ROW(Dátumy)),ROW(3:3))-ZačiatokRiadkaTabuľky,4),\"\")","v":""}]
[null,null,{"$f":"IFERROR(INDEX(tblPodujatia[],SMALL(IF(Dátumy=C$11,ROW(Dátumy)),ROW(4:4))-ZačiatokRiadkaTabuľky,4),\"\")","v":""},null,null,{"$f":"IFERROR(INDEX(tblPodujatia[],SMALL(IF(Dátumy=F$11,ROW(Dátumy)),ROW(4:4))-ZačiatokRiadkaTabuľky,4),\"\")","v":""},null,null,{"$f":"IFERROR(INDEX(tblPodujatia[],SMALL(IF(Dátumy=I$11,ROW(Dátumy)),ROW(4:4))-ZačiatokRiadkaTabuľky,4),\"\")","v":""},null,null,{"$f":"IFERROR(INDEX(tblPodujatia[],SMALL(IF(Dátumy=L$11,ROW(Dátumy)),ROW(4:4))-ZačiatokRiadkaTabuľky,4),\"\")","v":""},null,null,{"$f":"IFERROR(INDEX(tblPodujatia[],SMALL(IF(Dátumy=O$11,ROW(Dátumy)),ROW(4:4))-ZačiatokRiadkaTabuľky,4),\"\")","v":""},null,null,{"$f":"IFERROR(INDEX(tblPodujatia[],SMALL(IF(Dátumy=R$11,ROW(Dátumy)),ROW(4:4))-ZačiatokRiadkaTabuľky,4),\"\")","v":""},null,null,{"$f":"IFERROR(INDEX(tblPodujatia[],SMALL(IF(Dátumy=U$11,ROW(Dátumy)),ROW(4:4))-ZačiatokRiadkaTabuľky,4),\"\")","v":""}]
[null,null,{"$f":"U11+1","v":"2016-07-11"},null,null,{"$f":"C16+1","v":"2016-07-12"},null,null,{"$f":"F16+1","v":"2016-07-13"},null,null,{"$f":"I16+1","v":"2016-07-14"},null,null,{"$f":"L16+1","v":"2016-07-15"},null,null,{"$f":"O16+1","v":"2016-07-16"},null,null,{"$f":"R16+1","v":"2016-07-17"}]
[null,null,{"$f":"IFERROR(INDEX(tblPodujatia[],SMALL(IF(Dátumy=C$16,ROW(Dátumy)),ROW(1:1))-ZačiatokRiadkaTabuľky,4),\"\")","v":"Obed obchodnej komory"},null,null,{"$f":"IFERROR(INDEX(tblPodujatia[],SMALL(IF(Dátumy=F$16,ROW(Dátumy)),ROW(1:1))-ZačiatokRiadkaTabuľky,4),\"\")","v":"Výstava starožitností"},null,null,{"$f":"IFERROR(INDEX(tblPodujatia[],SMALL(IF(Dátumy=I$16,ROW(Dátumy)),ROW(1:1))-ZačiatokRiadkaTabuľky,4),\"\")","v":""},null,null,{"$f":"IFERROR(INDEX(tblPodujatia[],SMALL(IF(Dátumy=L$16,ROW(Dátumy)),ROW(1:1))-ZačiatokRiadkaTabuľky,4),\"\")","v":"Komunitný seminár"},null,null,{"$f":"IFERROR(INDEX(tblPodujatia[],SMALL(IF(Dátumy=O$16,ROW(Dátumy)),ROW(1:1))-ZačiatokRiadkaTabuľky,4),\"\")","v":"Mestská rada"},null,null,{"$f":"IFERROR(INDEX(tblPodujatia[],SMALL(IF(Dátumy=R$16,ROW(Dátumy)),ROW(1:1))-ZačiatokRiadkaTabuľky,4),\"\")","v":""},null,null,{"$f":"IFERROR(INDEX(tblPodujatia[],SMALL(IF(Dátumy=U$16,ROW(Dátumy)),ROW(1:1))-ZačiatokRiadkaTabuľky,4),\"\")","v":""}]
[null,null,{"$f":"IFERROR(INDEX(tblPodujatia[],SMALL(IF(Dátumy=C$16,ROW(Dátumy)),ROW(2:2))-ZačiatokRiadkaTabuľky,4),\"\")","v":""},null,null,{"$f":"IFERROR(INDEX(tblPodujatia[],SMALL(IF(Dátumy=F$16,ROW(Dátumy)),ROW(2:2))-ZačiatokRiadkaTabuľky,4),\"\")","v":""},null,null,{"$f":"IFERROR(INDEX(tblPodujatia[],SMALL(IF(Dátumy=I$16,ROW(Dátumy)),ROW(2:2))-ZačiatokRiadkaTabuľky,4),\"\")","v":""},null,null,{"$f":"IFERROR(INDEX(tblPodujatia[],SMALL(IF(Dátumy=L$16,ROW(Dátumy)),ROW(2:2))-ZačiatokRiadkaTabuľky,4),\"\")","v":""},null,null,{"$f":"IFERROR(INDEX(tblPodujatia[],SMALL(IF(Dátumy=O$16,ROW(Dátumy)),ROW(2:2))-ZačiatokRiadkaTabuľky,4),\"\")","v":""},null,null,{"$f":"IFERROR(INDEX(tblPodujatia[],SMALL(IF(Dátumy=R$16,ROW(Dátumy)),ROW(2:2))-ZačiatokRiadkaTabuľky,4),\"\")","v":""},null,null,{"$f":"IFERROR(INDEX(tblPodujatia[],SMALL(IF(Dátumy=U$16,ROW(Dátumy)),ROW(2:2))-ZačiatokRiadkaTabuľky,4),\"\")","v":""}]
[null,null,{"$f":"IFERROR(INDEX(tblPodujatia[],SMALL(IF(Dátumy=C$16,ROW(Dátumy)),ROW(3:3))-ZačiatokRiadkaTabuľky,4),\"\")","v":""},null,null,{"$f":"IFERROR(INDEX(tblPodujatia[],SMALL(IF(Dátumy=F$16,ROW(Dátumy)),ROW(3:3))-ZačiatokRiadkaTabuľky,4),\"\")","v":""},null,null,{"$f":"IFERROR(INDEX(tblPodujatia[],SMALL(IF(Dátumy=I$16,ROW(Dátumy)),ROW(3:3))-ZačiatokRiadkaTabuľky,4),\"\")","v":""},null,null,{"$f":"IFERROR(INDEX(tblPodujatia[],SMALL(IF(Dátumy=L$16,ROW(Dátumy)),ROW(3:3))-ZačiatokRiadkaTabuľky,4),\"\")","v":""},null,null,{"$f":"IFERROR(INDEX(tblPodujatia[],SMALL(IF(Dátumy=O$16,ROW(Dátumy)),ROW(3:3))-ZačiatokRiadkaTabuľky,4),\"\")","v":""},null,null,{"$f":"IFERROR(INDEX(tblPodujatia[],SMALL(IF(Dátumy=R$16,ROW(Dátumy)),ROW(3:3))-ZačiatokRiadkaTabuľky,4),\"\")","v":""},null,null,{"$f":"IFERROR(INDEX(tblPodujatia[],SMALL(IF(Dátumy=U$16,ROW(Dátumy)),ROW(3:3))-ZačiatokRiadkaTabuľky,4),\"\")","v":""}]
[null,null,{"$f":"IFERROR(INDEX(tblPodujatia[],SMALL(IF(Dátumy=C$16,ROW(Dátumy)),ROW(4:4))-ZačiatokRiadkaTabuľky,4),\"\")","v":""},null,null,{"$f":"IFERROR(INDEX(tblPodujatia[],SMALL(IF(Dátumy=F$16,ROW(Dátumy)),ROW(4:4))-ZačiatokRiadkaTabuľky,4),\"\")","v":""},null,null,{"$f":"IFERROR(INDEX(tblPodujatia[],SMALL(IF(Dátumy=I$16,ROW(Dátumy)),ROW(4:4))-ZačiatokRiadkaTabuľky,4),\"\")","v":""},null,null,{"$f":"IFERROR(INDEX(tblPodujatia[],SMALL(IF(Dátumy=L$16,ROW(Dátumy)),ROW(4:4))-ZačiatokRiadkaTabuľky,4),\"\")","v":""},null,null,{"$f":"IFERROR(INDEX(tblPodujatia[],SMALL(IF(Dátumy=O$16,ROW(Dátumy)),ROW(4:4))-ZačiatokRiadkaTabuľky,4),\"\")","v":""},null,null,{"$f":"IFERROR(INDEX(tblPodujatia[],SMALL(IF(Dátumy=R$16,ROW(Dátumy)),ROW(4:4))-ZačiatokRiadkaTabuľky,4),\"\")","v":""},null,null,{"$f":"IFERROR(INDEX(tblPodujatia[],SMALL(IF(Dátumy=U$16,ROW(Dátumy)),ROW(4:4))-ZačiatokRiadkaTabuľky,4),\"\")","v":""}]
[null,null,{"$f":"U16+1","v":"2016-07-18"},null,null,{"$f":"C21+1","v":"2016-07-19"},null,null,{"$f":"F21+1","v":"2016-07-20"},null,null,{"$f":"I21+1","v":"2016-07-21"},null,null,{"$f":"L21+1","v":"2016-07-22"},null,null,{"$f":"O21+1","v":"2016-07-23"},null,null,{"$f":"R21+1","v":"2016-07-24"}]
[null,null,{"$f":"IFERROR(INDEX(tblPodujatia[],SMALL(IF(Dátumy=C$21,ROW(Dátumy)),ROW(1:1))-ZačiatokRiadkaTabuľky,4),\"\")","v":""},null,null,{"$f":"IFERROR(INDEX(tblPodujatia[],SMALL(IF(Dátumy=F$21,ROW(Dátumy)),ROW(1:1))-ZačiatokRiadkaTabuľky,4),\"\")","v":"Seminár o strategickom plánovaní"},null,null,{"$f":"IFERROR(INDEX(tblPodujatia[],SMALL(IF(Dátumy=I$21,ROW(Dátumy)),ROW(1:1))-ZačiatokRiadkaTabuľky,4),\"\")","v":"Čistenie parku"},null,null,{"$f":"IFERROR(INDEX(tblPodujatia[],SMALL(IF(Dátumy=L$21,ROW(Dátumy)),ROW(1:1))-ZačiatokRiadkaTabuľky,4),\"\")","v":""},null,null,{"$f":"IFERROR(INDEX(tblPodujatia[],SMALL(IF(Dátumy=O$21,ROW(Dátumy)),ROW(1:1))-ZačiatokRiadkaTabuľky,4),\"\")","v":"Mestská rada"},null,null,{"$f":"IFERROR(INDEX(tblPodujatia[],SMALL(IF(Dátumy=R$21,ROW(Dátumy)),ROW(1:1))-ZačiatokRiadkaTabuľky,4),\"\")","v":""},null,null,{"$f":"IFERROR(INDEX(tblPodujatia[],SMALL(IF(Dátumy=U$21,ROW(Dátumy)),ROW(1:1))-ZačiatokRiadkaTabuľky,4),\"\")","v":""}]
[null,null,{"$f":"IFERROR(INDEX(tblPodujatia[],SMALL(IF(Dátumy=C$21,ROW(Dátumy)),ROW(2:2))-ZačiatokRiadkaTabuľky,4),\"\")","v":""},null,null,{"$f":"IFERROR(INDEX(tblPodujatia[],SMALL(IF(Dátumy=F$21,ROW(Dátumy)),ROW(2:2))-ZačiatokRiadkaTabuľky,4),\"\")","v":""},null,null,{"$f":"IFERROR(INDEX(tblPodujatia[],SMALL(IF(Dátumy=I$21,ROW(Dátumy)),ROW(2:2))-ZačiatokRiadkaTabuľky,4),\"\")","v":""},null,null,{"$f":"IFERROR(INDEX(tblPodujatia[],SMALL(IF(Dátumy=L$21,ROW(Dátumy)),ROW(2:2))-ZačiatokRiadkaTabuľky,4),\"\")","v":""},null,null,{"$f":"IFERROR(INDEX(tblPodujatia[],SMALL(IF(Dátumy=O$21,ROW(Dátumy)),ROW(2:2))-ZačiatokRiadkaTabuľky,4),\"\")","v":""},null,null,{"$f":"IFERROR(INDEX(tblPodujatia[],SMALL(IF(Dátumy=R$21,ROW(Dátumy)),ROW(2:2))-ZačiatokRiadkaTabuľky,4),\"\")","v":""},null,null,{"$f":"IFERROR(INDEX(tblPodujatia[],SMALL(IF(Dátumy=U$21,ROW(Dátumy)),ROW(2:2))-ZačiatokRiadkaTabuľky,4),\"\")","v":""}]
[null,null,{"$f":"IFERROR(INDEX(tblPodujatia[],SMALL(IF(Dátumy=C$21,ROW(Dátumy)),ROW(3:3))-ZačiatokRiadkaTabuľky,4),\"\")","v":""},null,null,{"$f":"IFERROR(INDEX(tblPodujatia[],SMALL(IF(Dátumy=F$21,ROW(Dátumy)),ROW(3:3))-ZačiatokRiadkaTabuľky,4),\"\")","v":""},null,null,{"$f":"IFERROR(INDEX(tblPodujatia[],SMALL(IF(Dátumy=I$21,ROW(Dátumy)),ROW(3:3))-ZačiatokRiadkaTabuľky,4),\"\")","v":""},null,null,{"$f":"IFERROR(INDEX(tblPodujatia[],SMALL(IF(Dátumy=L$21,ROW(Dátumy)),ROW(3:3))-ZačiatokRiadkaTabuľky,4),\"\")","v":""},null,null,{"$f":"IFERROR(INDEX(tblPodujatia[],SMALL(IF(Dátumy=O$21,ROW(Dátumy)),ROW(3:3))-ZačiatokRiadkaTabuľky,4),\"\")","v":""},null,null,{"$f":"IFERROR(INDEX(tblPodujatia[],SMALL(IF(Dátumy=R$21,ROW(Dátumy)),ROW(3:3))-ZačiatokRiadkaTabuľky,4),\"\")","v":""},null,null,{"$f":"IFERROR(INDEX(tblPodujatia[],SMALL(IF(Dátumy=U$21,ROW(Dátumy)),ROW(3:3))-ZačiatokRiadkaTabuľky,4),\"\")","v":""}]
[null,null,{"$f":"IFERROR(INDEX(tblPodujatia[],SMALL(IF(Dátumy=C$21,ROW(Dátumy)),ROW(4:4))-ZačiatokRiadkaTabuľky,4),\"\")","v":""},null,null,{"$f":"IFERROR(INDEX(tblPodujatia[],SMALL(IF(Dátumy=F$21,ROW(Dátumy)),ROW(4:4))-ZačiatokRiadkaTabuľky,4),\"\")","v":""},null,null,{"$f":"IFERROR(INDEX(tblPodujatia[],SMALL(IF(Dátumy=I$21,ROW(Dátumy)),ROW(4:4))-ZačiatokRiadkaTabuľky,4),\"\")","v":""},null,null,{"$f":"IFERROR(INDEX(tblPodujatia[],SMALL(IF(Dátumy=L$21,ROW(Dátumy)),ROW(4:4))-ZačiatokRiadkaTabuľky,4),\"\")","v":""},null,null,{"$f":"IFERROR(INDEX(tblPodujatia[],SMALL(IF(Dátumy=O$21,ROW(Dátumy)),ROW(4:4))-ZačiatokRiadkaTabuľky,4),\"\")","v":""},null,null,{"$f":"IFERROR(INDEX(tblPodujatia[],SMALL(IF(Dátumy=R$21,ROW(Dátumy)),ROW(4:4))-ZačiatokRiadkaTabuľky,4),\"\")","v":""},null,null,{"$f":"IFERROR(INDEX(tblPodujatia[],SMALL(IF(Dátumy=U$21,ROW(Dátumy)),ROW(4:4))-ZačiatokRiadkaTabuľky,4),\"\")","v":""}]
[null,null,{"$f":"U21+1","v":"2016-07-25"},null,null,{"$f":"C26+1","v":"2016-07-26"},null,null,{"$f":"F26+1","v":"2016-07-27"},null,null,{"$f":"I26+1","v":"2016-07-28"},null,null,{"$f":"L26+1","v":"2016-07-29"},null,null,{"$f":"O26+1","v":"2016-07-30"},null,null,{"$f":"R26+1","v":"2016-07-31"}]
[null,null,{"$f":"IFERROR(INDEX(tblPodujatia[],SMALL(IF(Dátumy=C$26,ROW(Dátumy)),ROW(1:1))-ZačiatokRiadkaTabuľky,4),\"\")","v":""},null,null,{"$f":"IFERROR(INDEX(tblPodujatia[],SMALL(IF(Dátumy=F$26,ROW(Dátumy)),ROW(1:1))-ZačiatokRiadkaTabuľky,4),\"\")","v":"Vychádzka do centra mesta"},null,null,{"$f":"IFERROR(INDEX(tblPodujatia[],SMALL(IF(Dátumy=I$26,ROW(Dátumy)),ROW(1:1))-ZačiatokRiadkaTabuľky,4),\"\")","v":""},null,null,{"$f":"IFERROR(INDEX(tblPodujatia[],SMALL(IF(Dátumy=L$26,ROW(Dátumy)),ROW(1:1))-ZačiatokRiadkaTabuľky,4),\"\")","v":""},null,null,{"$f":"IFERROR(INDEX(tblPodujatia[],SMALL(IF(Dátumy=O$26,ROW(Dátumy)),ROW(1:1))-ZačiatokRiadkaTabuľky,4),\"\")","v":"Mestská rada"},null,null,{"$f":"IFERROR(INDEX(tblPodujatia[],SMALL(IF(Dátumy=R$26,ROW(Dátumy)),ROW(1:1))-ZačiatokRiadkaTabuľky,4),\"\")","v":""},null,null,{"$f":"IFERROR(INDEX(tblPodujatia[],SMALL(IF(Dátumy=U$26,ROW(Dátumy)),ROW(1:1))-ZačiatokRiadkaTabuľky,4),\"\")","v":""}]
[null,null,{"$f":"IFERROR(INDEX(tblPodujatia[],SMALL(IF(Dátumy=C$26,ROW(Dátumy)),ROW(2:2))-ZačiatokRiadkaTabuľky,4),\"\")","v":""},null,null,{"$f":"IFERROR(INDEX(tblPodujatia[],SMALL(IF(Dátumy=F$26,ROW(Dátumy)),ROW(2:2))-ZačiatokRiadkaTabuľky,4),\"\")","v":"Výlet po baroch"},null,null,{"$f":"IFERROR(INDEX(tblPodujatia[],SMALL(IF(Dátumy=I$26,ROW(Dátumy)),ROW(2:2))-ZačiatokRiadkaTabuľky,4),\"\")","v":""},null,null,{"$f":"IFERROR(INDEX(tblPodujatia[],SMALL(IF(Dátumy=L$26,ROW(Dátumy)),ROW(2:2))-ZačiatokRiadkaTabuľky,4),\"\")","v":""},null,null,{"$f":"IFERROR(INDEX(tblPodujatia[],SMALL(IF(Dátumy=O$26,ROW(Dátumy)),ROW(2:2))-ZačiatokRiadkaTabuľky,4),\"\")","v":""},null,null,{"$f":"IFERROR(INDEX(tblPodujatia[],SMALL(IF(Dátumy=R$26,ROW(Dátumy)),ROW(2:2))-ZačiatokRiadkaTabuľky,4),\"\")","v":""},null,null,{"$f":"IFERROR(INDEX(tblPodujatia[],SMALL(IF(Dátumy=U$26,ROW(Dátumy)),ROW(2:2))-ZačiatokRiadkaTabuľky,4),\"\")","v":""}]
[null,null,{"$f":"IFERROR(INDEX(tblPodujatia[],SMALL(IF(Dátumy=C$26,ROW(Dátumy)),ROW(3:3))-ZačiatokRiadkaTabuľky,4),\"\")","v":""},null,null,{"$f":"IFERROR(INDEX(tblPodujatia[],SMALL(IF(Dátumy=F$26,ROW(Dátumy)),ROW(3:3))-ZačiatokRiadkaTabuľky,4),\"\")","v":""},null,null,{"$f":"IFERROR(INDEX(tblPodujatia[],SMALL(IF(Dátumy=I$26,ROW(Dátumy)),ROW(3:3))-ZačiatokRiadkaTabuľky,4),\"\")","v":""},null,null,{"$f":"IFERROR(INDEX(tblPodujatia[],SMALL(IF(Dátumy=L$26,ROW(Dátumy)),ROW(3:3))-ZačiatokRiadkaTabuľky,4),\"\")","v":""},null,null,{"$f":"IFERROR(INDEX(tblPodujatia[],SMALL(IF(Dátumy=O$26,ROW(Dátumy)),ROW(3:3))-ZačiatokRiadkaTabuľky,4),\"\")","v":""},null,null,{"$f":"IFERROR(INDEX(tblPodujatia[],SMALL(IF(Dátumy=R$26,ROW(Dátumy)),ROW(3:3))-ZačiatokRiadkaTabuľky,4),\"\")","v":""},null,null,{"$f":"IFERROR(INDEX(tblPodujatia[],SMALL(IF(Dátumy=U$26,ROW(Dátumy)),ROW(3:3))-ZačiatokRiadkaTabuľky,4),\"\")","v":""}]
[null,null,{"$f":"IFERROR(INDEX(tblPodujatia[],SMALL(IF(Dátumy=C$26,ROW(Dátumy)),ROW(4:4))-ZačiatokRiadkaTabuľky,4),\"\")","v":""},null,null,{"$f":"IFERROR(INDEX(tblPodujatia[],SMALL(IF(Dátumy=F$26,ROW(Dátumy)),ROW(4:4))-ZačiatokRiadkaTabuľky,4),\"\")","v":""},null,null,{"$f":"IFERROR(INDEX(tblPodujatia[],SMALL(IF(Dátumy=I$26,ROW(Dátumy)),ROW(4:4))-ZačiatokRiadkaTabuľky,4),\"\")","v":""},null,null,{"$f":"IFERROR(INDEX(tblPodujatia[],SMALL(IF(Dátumy=L$26,ROW(Dátumy)),ROW(4:4))-ZačiatokRiadkaTabuľky,4),\"\")","v":""},null,null,{"$f":"IFERROR(INDEX(tblPodujatia[],SMALL(IF(Dátumy=O$26,ROW(Dátumy)),ROW(4:4))-ZačiatokRiadkaTabuľky,4),\"\")","v":""},null,null,{"$f":"IFERROR(INDEX(tblPodujatia[],SMALL(IF(Dátumy=R$26,ROW(Dátumy)),ROW(4:4))-ZačiatokRiadkaTabuľky,4),\"\")","v":""},null,null,{"$f":"IFERROR(INDEX(tblPodujatia[],SMALL(IF(Dátumy=U$26,ROW(Dátumy)),ROW(4:4))-ZačiatokRiadkaTabuľky,4),\"\")","v":""}]
[null,null,{"$f":"U26+1","v":"2016-08-01"},null,null,{"$f":"C31+1","v":"2016-08-02"},null,null,"POZNÁMKY:"]
[null,null,{"$f":"IFERROR(INDEX(tblPodujatia[],SMALL(IF(Dátumy=C$31,ROW(Dátumy)),ROW(1:1))-ZačiatokRiadkaTabuľky,4),\"\")","v":""},null,null,{"$f":"IFERROR(INDEX(tblPodujatia[],SMALL(IF(Dátumy=F$31,ROW(Dátumy)),ROW(1:1))-ZačiatokRiadkaTabuľky,4),\"\")","v":""}]
[null,null,{"$f":"IFERROR(INDEX(tblPodujatia[],SMALL(IF(Dátumy=C$31,ROW(Dátumy)),ROW(2:2))-ZačiatokRiadkaTabuľky,4),\"\")","v":""},null,null,{"$f":"IFERROR(INDEX(tblPodujatia[],SMALL(IF(Dátumy=F$31,ROW(Dátumy)),ROW(2:2))-ZačiatokRiadkaTabuľky,4),\"\")","v":""}]
[null,null,{"$f":"IFERROR(INDEX(tblPodujatia[],SMALL(IF(Dátumy=C$31,ROW(Dátumy)),ROW(3:3))-ZačiatokRiadkaTabuľky,4),\"\")","v":""},null,null,{"$f":"IFERROR(INDEX(tblPodujatia[],SMALL(IF(Dátumy=F$31,ROW(Dátumy)),ROW(3:3))-ZačiatokRiadkaTabuľky,4),\"\")","v":""}]
[null,null,{"$f":"IFERROR(INDEX(tblPodujatia[],SMALL(IF(Dátumy=C$31,ROW(Dátumy)),ROW(4:4))-ZačiatokRiadkaTabuľky,4),\"\")","v":""},null,null,{"$f":"IFERROR(INDEX(tblPodujatia[],SMALL(IF(Dátumy=F$31,ROW(Dátumy)),ROW(4:4))-ZačiatokRiadkaTabuľky,4),\"\")","v":""}]

{"sheet":"VERZIA PRE TLAČ","index":2,"n_rows":35,"n_cols":21,"rows_kept":35,"merged":[[1,5,1,11],[30,8,34,20]]}
[]
[null,null,{"$f":"ZobraziťRok","v":2016},null,null,{"$f":"ZobraziťMesiac","v":"JÚL"},{"$error":"#REF!"},{"$error":"#REF!"},{"$error":"#REF!"},{"$error":"#REF!"},{"$error":"#REF!"},{"$error":"#REF!"}]
[]
[null,null,"PO",null,null,"UT",null,null,"ST",null,null,"ŠT",null,null,"PI",null,null,"SO",null,null,"NE"]
[]
[null,null,{"$f":"KALENDÁR!C6","v":"2016-06-27"},{"$f":"KALENDÁR!D6","v":0},{"$f":"KALENDÁR!E6","v":0},{"$f":"KALENDÁR!F6","v":"2016-06-28"},{"$f":"KALENDÁR!G6","v":0},{"$f":"KALENDÁR!H6","v":0},{"$f":"KALENDÁR!I6","v":"2016-06-29"},{"$f":"KALENDÁR!J6","v":0},{"$f":"KALENDÁR!K6","v":0},{"$f":"KALENDÁR!L6","v":"2016-06-30"},{"$f":"KALENDÁR!M6","v":0},{"$f":"KALENDÁR!N6","v":0},{"$f":"KALENDÁR!O6","v":"2016-07-01"},{"$f":"KALENDÁR!P6","v":0},{"$f":"KALENDÁR!Q6","v":0},{"$f":"KALENDÁR!R6","v":"2016-07-02"},{"$f":"KALENDÁR!S6","v":0},{"$f":"KALENDÁR!T6","v":0},{"$f":"KALENDÁR!U6","v":"2016-07-03"}]
[null,null,{"$f":"KALENDÁR!C7","v":""},{"$f":"KALENDÁR!D7","v":0},{"$f":"KALENDÁR!E7","v":0},{"$f":"KALENDÁR!F7","v":""},{"$f":"KALENDÁR!G7","v":0},{"$f":"KALENDÁR!H7","v":0},{"$f":"KALENDÁR!I7","v":""},{"$f":"KALENDÁR!J7","v":0},{"$f":"KALENDÁR!K7","v":0},{"$f":"KALENDÁR!L7","v":""},{"$f":"KALENDÁR!M7","v":0},{"$f":"KALENDÁR!N7","v":0},{"$f":"KALENDÁR!O7","v":"Komunitná záhrada"},{"$f":"KALENDÁR!P7","v":0},{"$f":"KALENDÁR!Q7","v":0},{"$f":"KALENDÁR!R7","v":"Komunitná záhrada"},{"$f":"KALENDÁR!S7","v":0},{"$f":"KALENDÁR!T7","v":0},{"$f":"KALENDÁR!U7","v":"Filmová noc v parku"}]
[null,null,{"$f":"KALENDÁR!C8","v":""},{"$f":"KALENDÁR!D8","v":"00:00:00"},{"$f":"KALENDÁR!E8","v":"00:00:00"},{"$f":"KALENDÁR!F8","v":""},{"$f":"KALENDÁR!G8","v":"00:00:00"},{"$f":"KALENDÁR!H8","v":"00:00:00"},{"$f":"KALENDÁR!I8","v":""},{"$f":"KALENDÁR!J8","v":"00:00:00"},{"$f":"KALENDÁR!K8","v":"00:00:00"},{"$f":"KALENDÁR!L8","v":""},{"$f":"KALENDÁR!M8","v":"00:00:00"},{"$f":"KALENDÁR!N8","v":"00:00:00"},{"$f":"KALENDÁR!O8","v":"Mestská rada"},{"$f":"KALENDÁR!P8","v":"00:00:00"},{"$f":"KALENDÁR!Q8","v":"00:00:00"},{"$f":"KALENDÁR!R8","v":""},{"$f":"KALENDÁR!S8","v":"00:00:00"},{"$f":"KALENDÁR!T8","v":"00:00:00"},{"$f":"KALENDÁR!U8","v":""}]
[null,null,{"$f":"KALENDÁR!C9","v":""},{"$f":"KALENDÁR!D9","v":0},{"$f":"KALENDÁR!E9","v":0},{"$f":"KALENDÁR!F9","v":""},{"$f":"KALENDÁR!G9","v":0},{"$f":"KALENDÁR!H9","v":0},{"$f":"KALENDÁR!I9","v":""},{"$f":"KALENDÁR!J9","v":0},{"$f":"KALENDÁR!K9","v":0},{"$f":"KALENDÁR!L9","v":""},{"$f":"KALENDÁR!M9","v":0},{"$f":"KALENDÁR!N9","v":0},{"$f":"KALENDÁR!O9","v":""},{"$f":"KALENDÁR!P9","v":0},{"$f":"KALENDÁR!Q9","v":0},{"$f":"KALENDÁR!R9","v":""},{"$f":"KALENDÁR!S9","v":0},{"$f":"KALENDÁR!T9","v":0},{"$f":"KALENDÁR!U9","v":""}]
[null,null,{"$f":"KALENDÁR!C10","v":""},{"$f":"KALENDÁR!D10","v":0},{"$f":"KALENDÁR!E10","v":0},{"$f":"KALENDÁR!F10","v":""},{"$f":"KALENDÁR!G10","v":0},{"$f":"KALENDÁR!H10","v":0},{"$f":"KALENDÁR!I10","v":""},{"$f":"KALENDÁR!J10","v":0},{"$f":"KALENDÁR!K10","v":0},{"$f":"KALENDÁR!L10","v":""},{"$f":"KALENDÁR!M10","v":0},{"$f":"KALENDÁR!N10","v":0},{"$f":"KALENDÁR!O10","v":""},{"$f":"KALENDÁR!P10","v":0},{"$f":"KALENDÁR!Q10","v":0},{"$f":"KALENDÁR!R10","v":""},{"$f":"KALENDÁR!S10","v":0},{"$f":"KALENDÁR!T10","v":0},{"$f":"KALENDÁR!U10","v":""}]
[null,null,{"$f":"KALENDÁR!C11","v":"2016-07-04"},{"$f":"KALENDÁR!D11","v":0},{"$f":"KALENDÁR!E11","v":0},{"$f":"KALENDÁR!F11","v":"2016-07-05"},{"$f":"KALENDÁR!G11","v":0},{"$f":"KALENDÁR!H11","v":0},{"$f":"KALENDÁR!I11","v":"2016-07-06"},{"$f":"KALENDÁR!J11","v":0},{"$f":"KALENDÁR!K11","v":0},{"$f":"KALENDÁR!L11","v":"2016-07-07"},{"$f":"KALENDÁR!M11","v":0},{"$f":"KALENDÁR!N11","v":0},{"$f":"KALENDÁR!O11","v":"2016-07-08"},{"$f":"KALENDÁR!P11","v":0},{"$f":"KALENDÁR!Q11","v":0},{"$f":"KALENDÁR!R11","v":"2016-07-09"},{"$f":"KALENDÁR!S11","v":0},{"$f":"KALENDÁR!T11","v":0},{"$f":"KALENDÁR!U11","v":"2016-07-10"}]
[null,null,{"$f":"KALENDÁR!C12","v":""},{"$f":"KALENDÁR!D12","v":0},{"$f":"KALENDÁR!E12","v":0},{"$f":"KALENDÁR!F12","v":""},{"$f":"KALENDÁR!G12","v":0},{"$f":"KALENDÁR!H12","v":0},{"$f":"KALENDÁR!I12","v":""},{"$f":"KALENDÁR!J12","v":0},{"$f":"KALENDÁR!K12","v":0},{"$f":"KALENDÁR!L12","v":""},{"$f":"KALENDÁR!M12","v":0},{"$f":"KALENDÁR!N12","v":0},{"$f":"KALENDÁR!O12","v":"Mestská rada"},{"$f":"KALENDÁR!P12","v":0},{"$f":"KALENDÁR!Q12","v":0},{"$f":"KALENDÁR!R12","v":""},{"$f":"KALENDÁR!S12","v":0},{"$f":"KALENDÁR!T12","v":0},{"$f":"KALENDÁR!U12","v":""}]
[null,null,{"$f":"KALENDÁR!C13","v":""},{"$f":"KALENDÁR!D13","v":0},{"$f":"KALENDÁR!E13","v":0},{"$f":"KALENDÁR!F13","v":""},{"$f":"KALENDÁR!G13","v":0},{"$f":"KALENDÁR!H13","v":0},{"$f":"KALENDÁR!I13","v":""},{"$f":"KALENDÁR!J13","v":0},{"$f":"KALENDÁR!K13","v":0},{"$f":"KALENDÁR!L13","v":""},{"$f":"KALENDÁR!M13","v":0},{"$f":"KALENDÁR!N13","v":0},{"$f":"KALENDÁR!O13","v":""},{"$f":"KALENDÁR!P13","v":0},{"$f":"KALENDÁR!Q13","v":0},{"$f":"KALENDÁR!R13","v":""},{"$f":"KALENDÁR!S13","v":0},{"$f":"KALENDÁR!T13","v":0},{"$f":"KALENDÁR!U13","v":""}]
[null,null,{"$f":"KALENDÁR!C14","v":""},{"$f":"KALENDÁR!D14","v":0},{"$f":"KALENDÁR!E14","v":0},{"$f":"KALENDÁR!F14","v":""},{"$f":"KALENDÁR!G14","v":0},{"$f":"KALENDÁR!H14","v":0},{"$f":"KALENDÁR!I14","v":""},{"$f":"KALENDÁR!J14","v":0},{"$f":"KALENDÁR!K14","v":0},{"$f":"KALENDÁR!L14","v":""},{"$f":"KALENDÁR!M14","v":0},{"$f":"KALENDÁR!N14","v":0},{"$f":"KALENDÁR!O14","v":""},{"$f":"KALENDÁR!P14","v":0},{"$f":"KALENDÁR!Q14","v":0},{"$f":"KALENDÁR!R14","v":""},{"$f":"KALENDÁR!S14","v":0},{"$f":"KALENDÁR!T14","v":0},{"$f":"KALENDÁR!U14","v":""}]
[null,null,{"$f":"KALENDÁR!C15","v":""},{"$f":"KALENDÁR!D15","v":0},{"$f":"KALENDÁR!E15","v":0},{"$f":"KALENDÁR!F15","v":""},{"$f":"KALENDÁR!G15","v":0},{"$f":"KALENDÁR!H15","v":0},{"$f":"KALENDÁR!I15","v":""},{"$f":"KALENDÁR!J15","v":0},{"$f":"KALENDÁR!K15","v":0},{"$f":"KALENDÁR!L15","v":""},{"$f":"KALENDÁR!M15","v":0},{"$f":"KALENDÁR!N15","v":0},{"$f":"KALENDÁR!O15","v":""},{"$f":"KALENDÁR!P15","v":0},{"$f":"KALENDÁR!Q15","v":0},{"$f":"KALENDÁR!R15","v":""},{"$f":"KALENDÁR!S15","v":0},{"$f":"KALENDÁR!T15","v":0},{"$f":"KALENDÁR!U15","v":""}]
[null,null,{"$f":"KALENDÁR!C16","v":"2016-07-11"},{"$f":"KALENDÁR!D16","v":0},{"$f":"KALENDÁR!E16","v":0},{"$f":"KALENDÁR!F16","v":"2016-07-12"},{"$f":"KALENDÁR!G16","v":0},{"$f":"KALENDÁR!H16","v":0},{"$f":"KALENDÁR!I16","v":"2016-07-13"},{"$f":"KALENDÁR!J16","v":0},{"$f":"KALENDÁR!K16","v":0},{"$f":"KALENDÁR!L16","v":"2016-07-14"},{"$f":"KALENDÁR!M16","v":0},{"$f":"KALENDÁR!N16","v":0},{"$f":"KALENDÁR!O16","v":"2016-07-15"},{"$f":"KALENDÁR!P16","v":0},{"$f":"KALENDÁR!Q16","v":0},{"$f":"KALENDÁR!R16","v":"2016-07-16"},{"$f":"KALENDÁR!S16","v":0},{"$f":"KALENDÁR!T16","v":0},{"$f":"KALENDÁR!U16","v":"2016-07-17"}]
[null,null,{"$f":"KALENDÁR!C17","v":"Obed obchodnej komory"},{"$f":"KALENDÁR!D17","v":0},{"$f":"KALENDÁR!E17","v":0},{"$f":"KALENDÁR!F17","v":"Výstava starožitností"},{"$f":"KALENDÁR!G17","v":0},{"$f":"KALENDÁR!H17","v":0},{"$f":"KALENDÁR!I17","v":""},{"$f":"KALENDÁR!J17","v":0},{"$f":"KALENDÁR!K17","v":0},{"$f":"KALENDÁR!L17","v":"Komunitný seminár"},{"$f":"KALENDÁR!M17","v":0},{"$f":"KALENDÁR!N17","v":0},{"$f":"KALENDÁR!O17","v":"Mestská rada"},{"$f":"KALENDÁR!P17","v":0},{"$f":"KALENDÁR!Q17","v":0},{"$f":"KALENDÁR!R17","v":""},{"$f":"KALENDÁR!S17","v":0},{"$f":"KALENDÁR!T17","v":0},{"$f":"KALENDÁR!U17","v":""}]
[null,null,{"$f":"KALENDÁR!C18","v":""},{"$f":"KALENDÁR!D18","v":0},{"$f":"KALENDÁR!E18","v":0},{"$f":"KALENDÁR!F18","v":""},{"$f":"KALENDÁR!G18","v":0},{"$f":"KALENDÁR!H18","v":0},{"$f":"KALENDÁR!I18","v":""},{"$f":"KALENDÁR!J18","v":0},{"$f":"KALENDÁR!K18","v":0},{"$f":"KALENDÁR!L18","v":""},{"$f":"KALENDÁR!M18","v":0},{"$f":"KALENDÁR!N18","v":0},{"$f":"KALENDÁR!O18","v":""},{"$f":"KALENDÁR!P18","v":0},{"$f":"KALENDÁR!Q18","v":0},{"$f":"KALENDÁR!R18","v":""},{"$f":"KALENDÁR!S18","v":0},{"$f":"KALENDÁR!T18","v":0},{"$f":"KALENDÁR!U18","v":""}]
[null,null,{"$f":"KALENDÁR!C19","v":""},{"$f":"KALENDÁR!D19","v":0},{"$f":"KALENDÁR!E19","v":0},{"$f":"KALENDÁR!F19","v":""},{"$f":"KALENDÁR!G19","v":0},{"$f":"KALENDÁR!H19","v":0},{"$f":"KALENDÁR!I19","v":""},{"$f":"KALENDÁR!J19","v":0},{"$f":"KALENDÁR!K19","v":0},{"$f":"KALENDÁR!L19","v":""},{"$f":"KALENDÁR!M19","v":0},{"$f":"KALENDÁR!N19","v":0},{"$f":"KALENDÁR!O19","v":""},{"$f":"KALENDÁR!P19","v":0},{"$f":"KALENDÁR!Q19","v":0},{"$f":"KALENDÁR!R19","v":""},{"$f":"KALENDÁR!S19","v":0},{"$f":"KALENDÁR!T19","v":0},{"$f":"KALENDÁR!U19","v":""}]
[null,null,{"$f":"KALENDÁR!C20","v":""},{"$f":"KALENDÁR!D20","v":0},{"$f":"KALENDÁR!E20","v":0},{"$f":"KALENDÁR!F20","v":""},{"$f":"KALENDÁR!G20","v":0},{"$f":"KALENDÁR!H20","v":0},{"$f":"KALENDÁR!I20","v":""},{"$f":"KALENDÁR!J20","v":0},{"$f":"KALENDÁR!K20","v":0},{"$f":"KALENDÁR!L20","v":""},{"$f":"KALENDÁR!M20","v":0},{"$f":"KALENDÁR!N20","v":0},{"$f":"KALENDÁR!O20","v":""},{"$f":"KALENDÁR!P20","v":0},{"$f":"KALENDÁR!Q20","v":0},{"$f":"KALENDÁR!R20","v":""},{"$f":"KALENDÁR!S20","v":0},{"$f":"KALENDÁR!T20","v":0},{"$f":"KALENDÁR!U20","v":""}]
[null,null,{"$f":"KALENDÁR!C21","v":"2016-07-18"},{"$f":"KALENDÁR!D21","v":0},{"$f":"KALENDÁR!E21","v":0},{"$f":"KALENDÁR!F21","v":"2016-07-19"},{"$f":"KALENDÁR!G21","v":0},{"$f":"KALENDÁR!H21","v":0},{"$f":"KALENDÁR!I21","v":"2016-07-20"},{"$f":"KALENDÁR!J21","v":0},{"$f":"KALENDÁR!K21","v":0},{"$f":"KALENDÁR!L21","v":"2016-07-21"},{"$f":"KALENDÁR!M21","v":0},{"$f":"KALENDÁR!N21","v":0},{"$f":"KALENDÁR!O21","v":"2016-07-22"},{"$f":"KALENDÁR!P21","v":0},{"$f":"KALENDÁR!Q21","v":0},{"$f":"KALENDÁR!R21","v":"2016-07-23"},{"$f":"KALENDÁR!S21","v":0},{"$f":"KALENDÁR!T21","v":0},{"$f":"KALENDÁR!U21","v":"2016-07-24"}]
[null,null,{"$f":"KALENDÁR!C22","v":""},{"$f":"KALENDÁR!D22","v":0},{"$f":"KALENDÁR!E22","v":0},{"$f":"KALENDÁR!F22","v":"Seminár o strategickom plánovaní"},{"$f":"KALENDÁR!G22","v":0},{"$f":"KALENDÁR!H22","v":0},{"$f":"KALENDÁR!I22","v":"Čistenie parku"},{"$f":"KALENDÁR!J22","v":0},{"$f":"KALENDÁR!K22","v":0},{"$f":"KALENDÁR!L22","v":""},{"$f":"KALENDÁR!M22","v":0},{"$f":"KALENDÁR!N22","v":0},{"$f":"KALENDÁR!O22","v":"Mestská rada"},{"$f":"KALENDÁR!P22","v":0},{"$f":"KALENDÁR!Q22","v":0},{"$f":"KALENDÁR!R22","v":""},{"$f":"KALENDÁR!S22","v":0},{"$f":"KALENDÁR!T22","v":0},{"$f":"KALENDÁR!U22","v":""}]
[null,null,{"$f":"KALENDÁR!C23","v":""},{"$f":"KALENDÁR!D23","v":0},{"$f":"KALENDÁR!E23","v":0},{"$f":"KALENDÁR!F23","v":""},{"$f":"KALENDÁR!G23","v":0},{"$f":"KALENDÁR!H23","v":0},{"$f":"KALENDÁR!I23","v":""},{"$f":"KALENDÁR!J23","v":0},{"$f":"KALENDÁR!K23","v":0},{"$f":"KALENDÁR!L23","v":""},{"$f":"KALENDÁR!M23","v":0},{"$f":"KALENDÁR!N23","v":0},{"$f":"KALENDÁR!O23","v":""},{"$f":"KALENDÁR!P23","v":0},{"$f":"KALENDÁR!Q23","v":0},{"$f":"KALENDÁR!R23","v":""},{"$f":"KALENDÁR!S23","v":0},{"$f":"KALENDÁR!T23","v":0},{"$f":"KALENDÁR!U23","v":""}]
[null,null,{"$f":"KALENDÁR!C24","v":""},{"$f":"KALENDÁR!D24","v":0},{"$f":"KALENDÁR!E24","v":0},{"$f":"KALENDÁR!F24","v":""},{"$f":"KALENDÁR!G24","v":0},{"$f":"KALENDÁR!H24","v":0},{"$f":"KALENDÁR!I24","v":""},{"$f":"KALENDÁR!J24","v":0},{"$f":"KALENDÁR!K24","v":0},{"$f":"KALENDÁR!L24","v":""},{"$f":"KALENDÁR!M24","v":0},{"$f":"KALENDÁR!N24","v":0},{"$f":"KALENDÁR!O24","v":""},{"$f":"KALENDÁR!P24","v":0},{"$f":"KALENDÁR!Q24","v":0},{"$f":"KALENDÁR!R24","v":""},{"$f":"KALENDÁR!S24","v":0},{"$f":"KALENDÁR!T24","v":0},{"$f":"KALENDÁR!U24","v":""}]
[null,null,{"$f":"KALENDÁR!C25","v":""},{"$f":"KALENDÁR!D25","v":0},{"$f":"KALENDÁR!E25","v":0},{"$f":"KALENDÁR!F25","v":""},{"$f":"KALENDÁR!G25","v":0},{"$f":"KALENDÁR!H25","v":0},{"$f":"KALENDÁR!I25","v":""},{"$f":"KALENDÁR!J25","v":0},{"$f":"KALENDÁR!K25","v":0},{"$f":"KALENDÁR!L25","v":""},{"$f":"KALENDÁR!M25","v":0},{"$f":"KALENDÁR!N25","v":0},{"$f":"KALENDÁR!O25","v":""},{"$f":"KALENDÁR!P25","v":0},{"$f":"KALENDÁR!Q25","v":0},{"$f":"KALENDÁR!R25","v":""},{"$f":"KALENDÁR!S25","v":0},{"$f":"KALENDÁR!T25","v":0},{"$f":"KALENDÁR!U25","v":""}]
[null,null,{"$f":"KALENDÁR!C26","v":"2016-07-25"},{"$f":"KALENDÁR!D26","v":0},{"$f":"KALENDÁR!E26","v":0},{"$f":"KALENDÁR!F26","v":"2016-07-26"},{"$f":"KALENDÁR!G26","v":0},{"$f":"KALENDÁR!H26","v":0},{"$f":"KALENDÁR!I26","v":"2016-07-27"},{"$f":"KALENDÁR!J26","v":0},{"$f":"KALENDÁR!K26","v":0},{"$f":"KALENDÁR!L26","v":"2016-07-28"},{"$f":"KALENDÁR!M26","v":0},{"$f":"KALENDÁR!N26","v":0},{"$f":"KALENDÁR!O26","v":"2016-07-29"},{"$f":"KALENDÁR!P26","v":0},{"$f":"KALENDÁR!Q26","v":0},{"$f":"KALENDÁR!R26","v":"2016-07-30"},{"$f":"KALENDÁR!S26","v":0},{"$f":"KALENDÁR!T26","v":0},{"$f":"KALENDÁR!U26","v":"2016-07-31"}]
[null,null,{"$f":"KALENDÁR!C27","v":""},{"$f":"KALENDÁR!D27","v":0},{"$f":"KALENDÁR!E27","v":0},{"$f":"KALENDÁR!F27","v":"Vychádzka do centra mesta"},{"$f":"KALENDÁR!G27","v":0},{"$f":"KALENDÁR!H27","v":0},{"$f":"KALENDÁR!I27","v":""},{"$f":"KALENDÁR!J27","v":0},{"$f":"KALENDÁR!K27","v":0},{"$f":"KALENDÁR!L27","v":""},{"$f":"KALENDÁR!M27","v":0},{"$f":"KALENDÁR!N27","v":0},{"$f":"KALENDÁR!O27","v":"Mestská rada"},{"$f":"KALENDÁR!P27","v":0},{"$f":"KALENDÁR!Q27","v":0},{"$f":"KALENDÁR!R27","v":""},{"$f":"KALENDÁR!S27","v":0},{"$f":"KALENDÁR!T27","v":0},{"$f":"KALENDÁR!U27","v":""}]
[null,null,{"$f":"KALENDÁR!C28","v":""},{"$f":"KALENDÁR!D28","v":0},{"$f":"KALENDÁR!E28","v":0},{"$f":"KALENDÁR!F28","v":"Výlet po baroch"},{"$f":"KALENDÁR!G28","v":0},{"$f":"KALENDÁR!H28","v":0},{"$f":"KALENDÁR!I28","v":""},{"$f":"KALENDÁR!J28","v":0},{"$f":"KALENDÁR!K28","v":0},{"$f":"KALENDÁR!L28","v":""},{"$f":"KALENDÁR!M28","v":0},{"$f":"KALENDÁR!N28","v":0},{"$f":"KALENDÁR!O28","v":""},{"$f":"KALENDÁR!P28","v":0},{"$f":"KALENDÁR!Q28","v":0},{"$f":"KALENDÁR!R28","v":""},{"$f":"KALENDÁR!S28","v":0},{"$f":"KALENDÁR!T28","v":0},{"$f":"KALENDÁR!U28","v":""}]
[null,null,{"$f":"KALENDÁR!C29","v":""},{"$f":"KALENDÁR!D29","v":0},{"$f":"KALENDÁR!E29","v":0},{"$f":"KALENDÁR!F29","v":""},{"$f":"KALENDÁR!G29","v":0},{"$f":"KALENDÁR!H29","v":0},{"$f":"KALENDÁR!I29","v":""},{"$f":"KALENDÁR!J29","v":0},{"$f":"KALENDÁR!K29","v":0},{"$f":"KALENDÁR!L29","v":""},{"$f":"KALENDÁR!M29","v":0},{"$f":"KALENDÁR!N29","v":0},{"$f":"KALENDÁR!O29","v":""},{"$f":"KALENDÁR!P29","v":0},{"$f":"KALENDÁR!Q29","v":0},{"$f":"KALENDÁR!R29","v":""},{"$f":"KALENDÁR!S29","v":0},{"$f":"KALENDÁR!T29","v":0},{"$f":"KALENDÁR!U29","v":""}]
[null,null,{"$f":"KALENDÁR!C30","v":""},{"$f":"KALENDÁR!D30","v":0},{"$f":"KALENDÁR!E30","v":0},{"$f":"KALENDÁR!F30","v":""},{"$f":"KALENDÁR!G30","v":0},{"$f":"KALENDÁR!H30","v":0},{"$f":"KALENDÁR!I30","v":""},{"$f":"KALENDÁR!J30","v":0},{"$f":"KALENDÁR!K30","v":0},{"$f":"KALENDÁR!L30","v":""},{"$f":"KALENDÁR!M30","v":0},{"$f":"KALENDÁR!N30","v":0},{"$f":"KALENDÁR!O30","v":""},{"$f":"KALENDÁR!P30","v":0},{"$f":"KALENDÁR!Q30","v":0},{"$f":"KALENDÁR!R30","v":""},{"$f":"KALENDÁR!S30","v":0},{"$f":"KALENDÁR!T30","v":0},{"$f":"KALENDÁR!U30","v":""}]
[null,null,{"$f":"KALENDÁR!C31","v":"2016-08-01"},{"$f":"KALENDÁR!D31","v":0},{"$f":"KALENDÁR!E31","v":0},{"$f":"KALENDÁR!F31","v":"2016-08-02"},null,null,{"$f":"KALENDÁR!I31","v":"POZNÁMKY:"}]
[null,null,{"$f":"KALENDÁR!C32","v":""},{"$f":"KALENDÁR!D32","v":0},{"$f":"KALENDÁR!E32","v":0},{"$f":"KALENDÁR!F32","v":""}]
[null,null,{"$f":"KALENDÁR!C33","v":""},{"$f":"KALENDÁR!D33","v":0},{"$f":"KALENDÁR!E33","v":0},{"$f":"KALENDÁR!F33","v":""}]
[null,null,{"$f":"KALENDÁR!C34","v":""},{"$f":"KALENDÁR!D34","v":0},{"$f":"KALENDÁR!E34","v":0},{"$f":"KALENDÁR!F34","v":""}]
[null,null,{"$f":"KALENDÁR!C35","v":""},{"$f":"KALENDÁR!D35","v":0},{"$f":"KALENDÁR!E35","v":0},{"$f":"KALENDÁR!F35","v":""}]

{"sheet":"SPRÁVCA","index":3,"n_rows":14,"n_cols":3,"rows_kept":14,"hidden":true}
[]
[null,"MESIAC","ČÍSLO"]
[null,"JANUÁR",1]
[null,"FEBRUÁR",2]
[null,"MAREC",3]
[null,"APRÍL",4]
[null,"MÁJ",5]
[null,"JÚN",6]
[null,"JÚL",7]
[null,"AUGUST",8]
[null,"SEPTEMBER",9]
[null,"OKTÓBER",10]
[null,"NOVEMBER",11]
[null,"DECEMBER",12]